fUST/lending_fUST_20251231
["ID","MTS","AMOUNT","RATE_DAILY","PERIOD"]
[400170034,1767167438746,-500.0,0.00011101,2]
[400170035,1767167438756,-325.14097696,0.00011101,2]
[400170036,1767167438765,-500.0,0.00011101,2]
[400170037,1767167438775,-500.0,0.00011101,2]
[400170038,1767167438784,-500.0,0.00011101,2]
[400170039,1767167438793,-500.0,0.00011101,2]
[400170040,1767167438802,-263.7892198,0.00011101,2]
[400170041,1767167438811,-259.60931661,0.00011101,2]
[400170042,1767167438820,-500.0,0.00011101,2]
[400170043,1767167438830,-500.0,0.00011101,2]
[400170044,1767167438839,-500.0,0.00011101,2]
[400170045,1767167438849,-500.0,0.00011101,2]
[400170046,1767167438859,-500.0,0.00011101,2]
[400170047,1767167438868,-419.40189637,0.00011101,2]
[400170048,1767167438877,-500.0,0.00011101,2]
[400170049,1767167438887,-500.0,0.00011101,2]
[400170050,1767167438896,-500.0,0.00011101,2]
[400170051,1767167438905,-500.0,0.00011101,2]
[400170052,1767167438915,-500.0,0.00011101,2]
[400170053,1767167438928,-500.0,0.00011101,2]
[400170054,1767167438938,-500.0,0.00011101,2]
[400170055,1767167438947,-500.0,0.00011101,2]
[400170056,1767167438957,-500.0,0.00011101,2]
[400170057,1767167438966,-500.0,0.00011101,2]
[400170058,1767167438975,-500.0,0.00011101,2]
[400170059,1767167438985,-500.0,0.00011101,2]
[400170060,1767167438996,-500.0,0.00011101,2]
[400170061,1767167439006,-500.0,0.00011101,2]
[400170062,1767167439015,-500.0,0.00011101,2]
[400170063,1767167439026,-500.0,0.00011101,2]
[400170064,1767167439035,-362.97967626,0.00011101,2]
[400170065,1767167439046,-500.0,0.00011101,2]
[400170066,1767167439055,-500.0,0.00011101,2]
[400170067,1767167439065,-500.0,0.00011101,2]
[400170068,1767167439075,-500.0,0.00011101,2]
[400170069,1767167439084,-500.0,0.00011101,2]
[400170070,1767167439094,-500.0,0.00011101,2]
[400170071,1767167439104,-500.0,0.00011101,2]
[400170072,1767167439114,-500.0,0.00011101,2]
[400170073,1767167439124,-500.0,0.00011101,2]
[400170074,1767167439134,-500.0,0.00011101,2]
[400170075,1767167439143,-500.0,0.00011101,2]
[400170076,1767167439153,-500.0,0.00011101,2]
[400170077,1767167439162,-500.0,0.00011101,2]
[400170078,1767167439173,-500.0,0.00011101,2]
[400170079,1767167439183,-600.0,0.00011101,2]
[400170080,1767167439193,-500.0,0.00011101,2]
[400170081,1767167439202,-500.0,0.00011101,2]
[400170082,1767167439212,-500.0,0.00011101,2]
[400170083,1767167439222,-500.0,0.00011101,2]
[400170084,1767167439232,-500.0,0.00011101,2]
[400170085,1767167439242,-500.0,0.00011101,2]
[400170086,1767167439251,-500.0,0.00011101,2]
[400170087,1767167439261,-500.0,0.00011101,2]
[400170088,1767167439272,-500.0,0.00011101,2]
[400170089,1767167439281,-500.0,0.00011101,2]
[400170090,1767167439291,-500.0,0.00011101,2]
[400170091,1767167439300,-500.0,0.00011101,2]
[400170092,1767167439309,-500.0,0.00011101,2]
[400170093,1767167439318,-500.0,0.00011101,2]
[400170094,1767167439327,-500.0,0.00011101,2]
[400170095,1767167439337,-500.0,0.00011101,2]
[400170096,1767167439346,-500.0,0.00011101,2]
[400170097,1767167439355,-360.90109995,0.00011101,2]
[400170098,1767167439364,-328.50709863,0.00011101,2]
[400170099,1767167439374,-500.0,0.00011101,2]
[400170100,1767167439384,-693.45195844,0.00011101,2]
[400170101,1767167439393,-693.45195844,0.00011101,2]
[400170102,1767167439402,-693.45195844,0.00011101,2]
[400170103,1767167439412,-693.45195844,0.00011101,2]
[400170104,1767167439422,-693.45195844,0.00011101,2]
[400170105,1767167439431,-693.45195844,0.00011101,2]
[400170106,1767167439442,-500.0,0.00011101,2]
[400170107,1767167439452,-500.0,0.00011101,2]
[400170108,1767167439462,-500.0,0.00011101,2]
[400170109,1767167439472,-500.0,0.00011101,2]
[400170110,1767167439483,-300.0,0.00011101,2]
[400170111,1767167439493,-500.0,0.00011101,2]
[400170112,1767167439505,-858.14679856,0.00011101,2]
[400170113,1767167439515,-858.14679856,0.00011101,2]
[400170114,1767167439524,-500.0,0.00011101,2]
[400170115,1767167439534,-500.0,0.00011101,2]
[400170116,1767167439543,-500.0,0.00011101,2]
[400170117,1767167439553,-500.0,0.00011101,2]
[400170118,1767167439562,-500.0,0.00011101,2]
[400170119,1767167439572,-500.0,0.00011101,2]
[400170120,1767167439581,-250.0,0.00011101,2]
[400170121,1767167439591,-500.0,0.00011101,2]
[400170122,1767167439600,-500.0,0.00011101,2]
[400170123,1767167439610,-500.0,0.00011101,2]
[400170124,1767167439620,-1200.0,0.00011101,2]
[400170125,1767167439629,-576.0,0.00011101,2]
[400170126,1767167439639,-359.97734552,0.00011101,2]
[400170127,1767167439648,-533814.86386921,0.00011102,2]
[400170128,1767167439658,-184.01414135,0.00011201,2]
[400170129,1767167439667,-151.0,0.00011201,2]
[400170130,1767167439676,-151.0,0.00011201,2]
[400170131,1767167439685,-151.0,0.00011201,2]
[400170132,1767167439695,-151.0,0.00011201,2]
[400170133,1767167439704,-151.0,0.00011201,2]
[400170134,1767167439714,-151.0,0.00011201,2]
[400170135,1767167439723,-151.0,0.00011201,2]
[400170136,1767167439732,-151.0,0.00011201,2]
[400170137,1767167439742,-151.0,0.00011201,2]
[400170138,1767167439751,-151.0,0.00011201,2]
[400170139,1767167439760,-242.32257062,0.00011201,2]
[400170140,1767167439771,-317.85870228,0.00011201,2]
[400170141,1767167439780,-500.0,0.00011207,2]
[400170142,1767167439789,-500.0,0.00011289,2]
[400170143,1767167439798,-500.0,0.00011289,2]
[400170144,1767167439807,-197.11954527,0.00011289,2]
[400170145,1767167439817,-553.14948986,0.00011289,2]
[400170146,1767167439826,-500.0,0.00011289,2]
[400170147,1767167439835,-500.0,0.00011344,2]
[400170148,1767167439845,-214.08087135,0.00011369,2]
[400170149,1767167439854,-500.0,0.00011426,2]
[400170150,1767167439864,-500.0,0.00011426,2]
[400170151,1767167439874,-500.0,0.00011426,2]
[400170152,1767167439883,-300.0,0.00011426,2]
[400170153,1767167439893,-300.0,0.00011426,2]
[400170154,1767167439903,-300.0,0.00011426,2]
[400170155,1767167439913,-300.0,0.00011426,2]
[400170156,1767167439923,-300.0,0.00011426,2]
[400170157,1767167439932,-300.0,0.00011426,2]
[400170158,1767167439942,-300.0,0.00011426,2]
[400170159,1767167439951,-300.0,0.00011426,2]
[400170160,1767167439961,-300.0,0.00011426,2]
[400170161,1767167439970,-300.0,0.00011426,2]
[400170162,1767167439979,-300.0,0.00011426,2]
[400170163,1767167439988,-300.0,0.00011426,2]
[400170165,1767167439998,-300.0,0.00011426,2]
[400170167,1767167440008,-300.0,0.00011426,2]
[400170168,1767167440018,-300.0,0.00011426,2]
[400170169,1767167440028,-600.0,0.00011426,2]
[400170170,1767167440037,-500.0,0.00011481,2]
[400170171,1767167440046,-500.0,0.00011563,2]
[400170172,1767167440056,-500.0,0.00011563,2]
[400170173,1767167440065,-500.0,0.00011563,2]
[400170174,1767167440075,-500.0,0.00011618,2]
[400170175,1767167440084,-500.0,0.000117,2]
[400170176,1767167440094,-500.0,0.000117,2]
[400170177,1767167440115,-265.11029521,0.000117,2]
[400170178,1767167440125,-13937.88470282,0.00011703,2]
[400170179,1767167440135,-500.0,0.00011755,2]
[400170180,1767167440145,-500.0,0.00011837,2]
[400170181,1767167440155,-500.0,0.00011837,2]
[400170182,1767167440165,-164.67650055,0.00011892,2]
[400170183,1767167440175,-500.0,0.00011974,2]
[400170184,1767167440185,-252.7531986,0.00011974,2]
[400170185,1767167440195,-500.0,0.00012111,2]
[400170186,1767167440205,-300.0,0.00012196,2]
[400170187,1767167440215,-366.0,0.00012196,2]
[400170188,1767167440225,-420.0,0.00012196,2]
[400170190,1767167440235,-300.0,0.00012196,2]
[400170191,1767167440245,-1680.0,0.00012197,2]
[400170193,1767167440255,-1680.0,0.0001221,2]
[400170195,1767167440264,-500.0,0.00012248,2]
[400170196,1767167440274,-756.7,0.00012299,2]
[400170197,1767167440283,-2675.21,0.00012329,2]
[400170198,1767167440293,-2229.34,0.00012329,2]
[400170199,1767167440303,-1857.78,0.00012329,2]
[400170200,1767167440312,-1548.15,0.00012329,2]
[400170201,1767167440322,-1290.13,0.00012329,2]
[400170202,1767167440331,-1075.11,0.00012329,2]
[400170203,1767167440341,-895.92,0.00012329,2]
[400170204,1767167440350,-746.6,0.00012329,2]
[400170205,1767167440361,-622.17,0.00012329,2]
[400170206,1767167440370,-518.47,0.00012329,2]
[400170207,1767167440380,-432.06,0.00012329,2]
[400170208,1767167440389,-360.05,0.00012329,2]
[400170209,1767167440399,-300.04,0.00012329,2]
[400170210,1767167440408,-250.04,0.00012329,2]
[400170211,1767167440419,-208.36,0.00012329,2]
[400170212,1767167440428,-208.36,0.00012329,2]
[400170213,1767167440438,-833.49,0.00012329,2]
[400170214,1767167440449,-500.0,0.00012385,2]
[400170215,1767167440458,-491.17925611,0.00012522,2]
[400170216,1767167440469,-720.0,0.00012569,2]
[400170217,1767167440479,-1513.39,0.00012884,2]
[400170218,1767167440489,-1174.16213624,0.00012888,2]
[400170219,1767167440499,-151.0,0.000129,2]
[400170220,1767167440508,-9925.60811245,0.000129,2]
[400170221,1767167440519,-359.9773455,0.00013004,2]
[400170222,1767167440529,-368.72418724,0.00013177,2]
[400170223,1767167440540,-500.0,0.00013273,2]
[400170224,1767167440550,-544.63270575,0.00013273,2]
[400170225,1767167440559,-500.0,0.00013273,2]
[400170226,1767167440569,-413.99757981,0.00013273,2]
[400170227,1767167440579,-500.0,0.00013273,2]
[400170228,1767167440588,-500.0,0.00013273,2]
[400170229,1767167440598,-500.0,0.00013273,2]
[400170230,1767167440608,-500.0,0.00013273,2]
[400170231,1767167440618,-500.0,0.00013273,2]
[400170232,1767167440627,-500.0,0.00013273,2]
[400170233,1767167440637,-500.0,0.00013273,2]
[400170234,1767167440647,-500.0,0.00013273,2]
[400170235,1767167440656,-500.0,0.00013273,2]
[400170236,1767167440668,-500.0,0.00013273,2]
[400170237,1767167440678,-315.88685405,0.00013273,2]
[400170238,1767167440687,-500.0,0.00013273,2]
[400170239,1767167440696,-500.0,0.00013273,2]
[400170240,1767167440706,-500.0,0.00013273,2]
[400170241,1767167440718,-500.0,0.00013273,2]
[400170242,1767167440728,-500.0,0.00013273,2]
[400170243,1767167440738,-500.0,0.00013273,2]
[400170244,1767167440748,-500.0,0.00013273,2]
[400170245,1767167440758,-500.0,0.00013273,2]
[400170246,1767167440767,-500.0,0.00013273,2]
[400170247,1767167440777,-500.0,0.00013273,2]
[400170248,1767167440786,-500.0,0.00013273,2]
[400170249,1767167440796,-500.0,0.00013273,2]
[400170250,1767167440806,-500.0,0.00013273,2]
[400170251,1767167440815,-500.0,0.00013273,2]
[400170252,1767167440825,-500.0,0.00013273,2]
[400170253,1767167440834,-500.0,0.00013273,2]
[400170254,1767167440844,-500.0,0.00013273,2]
[400170255,1767167440854,-500.0,0.00013273,2]
[400170256,1767167440863,-500.0,0.00013273,2]
[400170257,1767167440873,-500.0,0.00013273,2]
[400170258,1767167440882,-500.0,0.00013273,2]
[400170260,1767167440891,-602.47879957,0.00013273,2]
[400170261,1767167440900,-500.0,0.00013273,2]
[400170262,1767167440910,-500.0,0.00013273,2]
[400170263,1767167440920,-151.0,0.000133,2]
[400170264,1767167440930,-151.0,0.000134,2]
[400170265,1767167440943,-587.0,0.00013401,2]
[400170266,1767167440953,-2351.0,0.00013402,2]
[400170267,1767167441128,-281.0,0.00013431,2]
[400170268,1767167441139,-2270.09,0.0001347,2]
[400170269,1767167441149,-413.3,0.000136,2]
[400170270,1767167441159,-300.0,0.00013673,2]
[400170271,1767167441168,-1000.0,0.00013698,2]
[400170272,1767167441178,-1000.0,0.00013698,2]
[400170273,1767167441187,-1000.0,0.00013698,2]
[400170274,1767167441196,-1000.0,0.00013698,2]
[400170275,1767167441206,-1000.0,0.00013698,2]
[400170276,1767167441215,-1000.0,0.00013698,2]
[400170277,1767167441224,-1000.0,0.00013698,2]
[400170278,1767167441234,-1008.34593737,0.00013698,2]
[400170279,1767167441243,-606.03,0.00013698,2]
[400170280,1767167441252,-606.03,0.00013698,2]
[400170281,1767167441262,-606.03,0.00013698,2]
[400170282,1767167441271,-606.03,0.00013698,2]
[400170283,1767167441280,-606.03,0.00013698,2]
[400170284,1767167441290,-606.03,0.00013698,2]
[400170285,1767167441301,-606.03,0.00013698,2]
[400170286,1767167441310,-606.03,0.00013698,2]
[400170287,1767167441319,-606.03,0.00013698,2]
[400170288,1767167441329,-606.03,0.00013698,2]
[400170289,1767167441338,-606.03,0.00013698,2]
[400170290,1767167441347,-606.03,0.00013698,2]
[400170291,1767167441356,-606.03,0.00013698,2]
[400170292,1767167441365,-606.03,0.00013698,2]
[400170293,1767167441374,-606.03,0.00013698,2]
[400170294,1767167441383,-606.03,0.00013698,2]
[400170295,1767167441393,-606.03,0.00013698,2]
[400170296,1767167441402,-606.03,0.00013698,2]
[400170297,1767167441411,-606.03,0.00013698,2]
[400170298,1767167441422,-606.03,0.00013698,2]
[400170299,1767167441431,-606.03,0.00013698,2]
[400170300,1767167441441,-606.03,0.00013698,2]
[400170301,1767167441450,-606.03,0.00013698,2]
[400170302,1767167441459,-606.06539147,0.00013698,2]
[400170303,1767167441469,-500.0,0.00013698,2]
[400170304,1767167441482,-500.0,0.00013698,2]
[400170305,1767167441492,-500.0,0.00013698,2]
[400170306,1767167441502,-500.0,0.00013698,2]
[400170307,1767167441511,-500.0,0.00013698,2]
[400170308,1767167441520,-500.0,0.00013698,2]
[400170309,1767167441530,-500.0,0.00013698,2]
[400170310,1767167441540,-500.0,0.00013698,2]
[400170311,1767167441549,-500.0,0.00013698,2]
[400170312,1767167441559,-500.0,0.00013698,2]
[400170313,1767167441572,-500.0,0.00013698,2]
[400170314,1767167441581,-500.0,0.00013698,2]
[400170315,1767167441591,-500.0,0.00013698,2]
[400170316,1767167441600,-500.0,0.00013698,2]
[400170317,1767167441609,-500.0,0.00013698,2]
[400170318,1767167441619,-482.71,0.00013698,2]
[400170319,1767167441629,-500.0,0.00013698,2]
[400170320,1767167441638,-262.16767073,0.00013698,2]
[400170321,1767167441647,-500.0,0.00013698,2]
[400170322,1767167441658,-500.0,0.00013698,2]
[400170323,1767167441667,-500.0,0.00013698,2]
[400170324,1767167441676,-500.0,0.00013698,2]
[400170325,1767167441686,-500.0,0.00013698,2]
[400170326,1767167441695,-4354.831945,0.00013699,2]
[400170327,1767167441704,-500.0,0.00013699,2]
[400170328,1767167441714,-500.0,0.00013699,2]
[400170329,1767167441723,-500.0,0.00013699,2]
[400170330,1767167441732,-160.15137988,0.00013699,2]
[400170331,1767167441742,-500.0,0.00013699,2]
[400170332,1767167441751,-500.0,0.00013699,2]
[400170333,1767167441761,-500.0,0.00013699,2]
[400170334,1767167441770,-500.0,0.00013699,2]
[400170335,1767167441779,-500.0,0.00013699,2]
[400170336,1767167441788,-500.0,0.00013699,2]
[400170337,1767167441798,-500.0,0.00013699,2]
[400170338,1767167441807,-165.03764715,0.00013699,2]
[400170339,1767167441816,-500.0,0.00013699,2]
[400170340,1767167441825,-500.0,0.00013699,2]
[400170341,1767167441835,-565.555714,0.00013699,2]
[400170342,1767167441844,-500.0,0.00013699,2]
[400170343,1767167441854,-500.0,0.00013699,2]
[400170344,1767167441863,-500.0,0.00013699,2]
[400170345,1767167441873,-500.0,0.00013699,2]
[400170346,1767167441883,-500.0,0.00013699,2]
[400170347,1767167441892,-500.0,0.00013699,2]
[400170348,1767167441901,-500.0,0.00013699,2]
[400170349,1767167441910,-159.68059141,0.00013699,2]
[400170350,1767167441920,-500.0,0.00013699,2]
[400170351,1767167441929,-500.0,0.00013699,2]
[400170352,1767167441938,-500.0,0.00013699,2]
[400170353,1767167441947,-500.0,0.00013699,2]
[400170354,1767167441957,-500.0,0.00013699,2]
[400170355,1767167441966,-500.0,0.00013699,2]
[400170356,1767167441976,-500.0,0.00013699,2]
[400170357,1767167441986,-150.35034149,0.00013699,2]
[400170358,1767167441995,-500.0,0.00013699,2]
[400170359,1767167442005,-500.0,0.00013699,2]
[400170360,1767167442014,-500.0,0.00013699,2]
[400170361,1767167442023,-500.0,0.00013699,2]
[400170362,1767167442032,-346.46150426,0.00013699,2]
[400170363,1767167442042,-500.0,0.00013699,2]
[400170364,1767167442051,-500.0,0.00013699,2]
[400170365,1767167442061,-500.0,0.00013699,2]
[400170366,1767167442072,-500.0,0.00013699,2]
[400170367,1767167442081,-500.0,0.00013699,2]
[400170368,1767167442091,-416.75445415,0.00013699,2]
[400170369,1767167442101,-260.28159851,0.00013699,2]
[400170370,1767167442111,-160.3309554,0.00013699,2]
[400170371,1767167442121,-158.38886572,0.00013699,2]
[400170372,1767167442130,-500.0,0.00013699,2]
[400170373,1767167442140,-500.0,0.00013699,2]
[400170374,1767167442150,-587.30545204,0.00013699,2]
[400170375,1767167442159,-158.18512013,0.00013699,2]
[400170376,1767167442170,-500.0,0.00013699,2]
[400170377,1767167442180,-500.57498562,0.00013699,2]
[400170378,1767167442189,-500.0,0.00013699,2]
[400170379,1767167442199,-500.0,0.00013699,2]
[400170380,1767167442208,-500.0,0.00013699,2]
[400170381,1767167442218,-500.0,0.00013699,2]
[400170382,1767167442227,-500.0,0.00013699,2]
[400170383,1767167442239,-303.93264249,0.00013699,2]
[400170384,1767167442249,-500.0,0.00013699,2]
[400170385,1767167442259,-500.0,0.00013699,2]
[400170386,1767167442268,-500.0,0.00013699,2]
[400170387,1767167442278,-500.0,0.00013699,2]
[400170388,1767167442288,-500.0,0.00013699,2]
[400170389,1767167442297,-237.8458189,0.00013699,2]
[400170390,1767167442306,-500.0,0.00013699,2]
[400170391,1767167442316,-157.18386067,0.00013699,2]
[400170392,1767167442325,-298.53483888,0.00013699,2]
[400170393,1767167442334,-188.42009972,0.00013699,2]
[400170394,1767167442343,-160.18745103,0.00013699,2]
[400170395,1767167442353,-158.38534385,0.00013699,2]
[400170396,1767167442362,-158.18512633,0.00013699,2]
[400170397,1767167442372,-500.0,0.00013699,2]
[400170398,1767167442382,-500.0,0.00013699,2]
[400170399,1767167442391,-500.0,0.00013699,2]
[400170400,1767167442400,-158.38533297,0.00013699,2]
[400170401,1767167442410,-158.39206841,0.00013699,2]
[400170402,1767167442419,-500.0,0.00013699,2]
[400170403,1767167442429,-500.0,0.00013699,2]
[400170404,1767167442439,-178.08460977,0.00013699,2]
[400170405,1767167442447,-500.0,0.00013699,2]
[400170406,1767167442456,-500.0,0.00013699,2]
[400170407,1767167442468,-500.0,0.00013699,2]
[400170408,1767167442478,-500.0,0.00013699,2]
[400170409,1767167442487,-500.0,0.00013699,2]
[400170410,1767167442497,-500.0,0.00013699,2]
[400170411,1767167442507,-500.0,0.00013699,2]
[400170412,1767167442516,-500.0,0.00013699,2]
[400170413,1767167442526,-500.0,0.00013699,2]
[400170414,1767167442535,-500.0,0.00013699,2]
[400170415,1767167442545,-500.0,0.00013699,2]
[400170416,1767167442555,-500.0,0.00013699,2]
[400170417,1767167442564,-158.3853059,0.00013699,2]
[400170418,1767167442573,-500.0,0.00013699,2]
[400170419,1767167442584,-500.0,0.00013699,2]
[400170420,1767167442593,-500.0,0.00013699,2]
[400170421,1767167442603,-500.0,0.00013699,2]
[400170422,1767167442612,-540.63230604,0.00013699,2]
[400170423,1767167442622,-500.0,0.00013699,2]
[400170424,1767167442632,-500.0,0.00013699,2]
[400170425,1767167442641,-163.65866633,0.00013699,2]
[400170426,1767167442650,-158.10807846,0.00013699,2]
[400170427,1767167442660,-500.0,0.00013699,2]
[400170428,1767167442670,-500.0,0.00013699,2]
[400170429,1767167442679,-500.0,0.00013699,2]
[400170430,1767167442689,-500.0,0.00013699,2]
[400170431,1767167442698,-500.0,0.00013699,2]
[400170432,1767167442708,-500.0,0.00013699,2]
[400170433,1767167442718,-500.0,0.00013699,2]
[400170434,1767167442728,-500.0,0.00013699,2]
[400170435,1767167442738,-500.0,0.00013699,2]
[400170436,1767167442747,-500.0,0.00013699,2]
[400170437,1767167442757,-500.0,0.00013699,2]
[400170438,1767167442768,-500.0,0.00013699,2]
[400170440,1767167442778,-500.0,0.00013699,2]
[400170442,1767167442787,-500.0,0.00013699,2]
[400170443,1767167442797,-500.0,0.00013699,2]
[400170444,1767167442807,-215.53448151,0.00013699,2]
[400170445,1767167442817,-500.0,0.00013699,2]
[400170446,1767167442826,-500.0,0.00013699,2]
[400170447,1767167442836,-500.0,0.00013699,2]
[400170448,1767167442844,-500.0,0.00013699,2]
[400170449,1767167442853,-250.0,0.00013699,2]
[400170450,1767167442863,-500.0,0.00013699,2]
[400170451,1767167442872,-151.0,0.000137,2]
[400170452,1767167442881,-1000.0,0.00013821,2]
[400170453,1767167442890,-561.98334321,0.00013821,2]
[400170454,1767167442899,-1000.0,0.00013821,2]
[400170455,1767167442908,-1000.0,0.00013821,2]
[400170456,1767167442917,-1000.0,0.00013821,2]
[400170457,1767167442927,-1000.0,0.00013821,2]
[400170458,1767167442936,-1000.0,0.00013821,2]
[400170459,1767167442945,-1000.0,0.00013821,2]
[400170460,1767167442954,-1000.0,0.00013821,2]
[400170461,1767167442963,-1000.0,0.00013821,2]
[400170462,1767167442972,-1000.0,0.00013821,2]
[400170463,1767167442982,-1000.0,0.00013821,2]
[400170464,1767167442991,-1000.0,0.00013821,2]
[400170465,1767167443001,-1000.0,0.00013821,2]
[400170466,1767167443010,-696.20087533,0.00013821,2]
[400170467,1767167443020,-1000.0,0.00013821,2]
[400170468,1767167443030,-1000.0,0.00013821,2]
[400170469,1767167443039,-1000.0,0.00013821,2]
[400170470,1767167443049,-1000.0,0.00013821,2]
[400170471,1767167443058,-1000.0,0.00013821,2]
[400170472,1767167443068,-1000.0,0.00013821,2]
[400170473,1767167443078,-1000.0,0.00013821,2]
[400170474,1767167443087,-1000.0,0.00013821,2]
[400170475,1767167443097,-1000.0,0.00013821,2]
[400170476,1767167443106,-190.31177109,0.00013821,2]
[400170477,1767167443116,-1000.0,0.00013821,2]
[400170478,1767167443125,-1000.0,0.00013821,2]
[400170479,1767167443135,-1000.0,0.00013821,2]
[400170480,1767167443144,-1000.0,0.00013821,2]
[400170481,1767167443154,-1000.0,0.00013821,2]
[400170482,1767167443164,-1000.0,0.00013821,2]
[400170483,1767167443174,-349.3977641,0.00013821,2]
[400170484,1767167443184,-1000.0,0.00013821,2]
[400170485,1767167443193,-1000.0,0.00013821,2]
[400170486,1767167443203,-186.16786472,0.00013821,2]
[400170487,1767167443213,-864.0,0.00013826,2]
[400170488,1767167443223,-3026.79,0.00014056,2]
[400170489,1767167443232,-151.0,0.000141,2]
[400170490,1767167443242,-600.0,0.00014221,2]
[400170491,1767167443251,-1000.0,0.00014247,2]
[400170492,1767167443262,-1000.0,0.00014247,2]
[400170493,1767167443272,-1000.0,0.00014247,2]
[400170494,1767167443281,-433.15519118,0.00014247,2]
[400170495,1767167443291,-1000.0,0.00014247,2]
[400170496,1767167443300,-1000.0,0.00014247,2]
[400170497,1767167443310,-1000.0,0.00014247,2]
[400170498,1767167443319,-1000.0,0.00014247,2]
[400170499,1767167443329,-1000.0,0.00014247,2]
[400170500,1767167443338,-1000.0,0.00014247,2]
[400170501,1767167443347,-1000.0,0.00014247,2]
[400170502,1767167443356,-1000.0,0.00014247,2]
[400170503,1767167443365,-1000.0,0.00014247,2]
[400170504,1767167443374,-1000.0,0.00014247,2]
[400170505,1767167443384,-500.68443154,0.00014247,2]
[400170506,1767167443393,-1000.0,0.00014247,2]
[400170507,1767167443402,-1000.0,0.00014247,2]
[400170508,1767167443411,-1000.0,0.00014247,2]
[400170509,1767167443421,-1000.0,0.00014247,2]
[400170510,1767167443430,-1000.0,0.00014247,2]
[400170511,1767167443439,-500.4478313,0.00014247,2]
[400170512,1767167443448,-1000.0,0.00014247,2]
[400170513,1767167443457,-1000.0,0.00014247,2]
[400170514,1767167443467,-1000.0,0.00014247,2]
[400170515,1767167443479,-1000.0,0.00014247,2]
[400170516,1767167443489,-1000.0,0.00014247,2]
[400170517,1767167443498,-500.48099046,0.00014247,2]
[400170518,1767167443508,-1000.0,0.00014247,2]
[400170519,1767167443517,-1000.0,0.00014247,2]
[400170520,1767167443526,-688.75934812,0.00014247,2]
[400170521,1767167443536,-609.17214565,0.00014247,2]
[400170522,1767167443545,-1000.0,0.00014247,2]
[400170523,1767167443555,-1000.0,0.00014247,2]
[400170524,1767167443564,-1000.0,0.00014247,2]
[400170525,1767167443574,-495.63847364,0.00014247,2]
[400170526,1767167443590,-1000.75482131,0.00014247,2]
[400170527,1767167443603,-1000.0,0.00014247,2]
[400170528,1767167443613,-1000.0,0.00014247,2]
[400170529,1767167443623,-1005.9697834,0.00014247,2]
[400170530,1767167443632,-1000.0,0.00014247,2]
[400170531,1767167443643,-251.84601956,0.00014247,2]
[400170532,1767167443652,-911.90264951,0.00014247,2]
[400170533,1767167443661,-1000.0,0.00014247,2]
[400170534,1767167443671,-297.63479171,0.00014247,2]
[400170535,1767167443681,-1000.0,0.00014247,2]
[400170536,1767167443691,-1002.43895782,0.00014247,2]
[400170537,1767167443701,-1000.0,0.00014247,2]
[400170538,1767167443711,-1000.0,0.00014247,2]
[400170539,1767167443720,-1000.0,0.00014247,2]
[400170540,1767167443730,-1000.0,0.00014247,2]
[400170541,1767167443739,-1000.0,0.00014247,2]